Workbook

Sheet KEZDÉS
B1: A SABLON ISMERTETÉSE
B2: Ezzel a Webhelyköltségvetési eszköz szolgáló eszközzel nyomon követheti a webhely kezdeti befektetéseit, valamint az előnyök és a költségek.
B3: Adja meg a cég neve és a dátum.
B4: Adja meg az adatokat a táblázatban a végösszegek és az értékelési metrikák kiszámításához.
B5: Megjegyzés:
B6: A KÖLTSÉGVETÉSESZKÖZ munkalap A oszlopában további útmutatást olvashat. Ez a szöveg szándékosan van elrejtve. Ha törölni szeretné a szöveget, jelölje ki az A oszlopot, majd nyomja le a DELETE billentyűt. Ha láthatóvá szeretné tenni a szöveget, jelölje ki az A oszlopot, majd módosítsa a betűszínt.
B7: Ha többet szeretne megtudni a munkalapon lévő táblázatokról, nyomja le a SHIFT+F10 billentyűkombinációt egy táblázaton belül, válassza a TÁBLÁZAT parancsot, majd a HELYETTESÍTŐ SZÖVEG elemet.

Sheet KÖLTSÉGVETÉSESZKÖZ
A1: Ezen a munkalapon elkészítheti egy webhely költségvetését. Ennek az oszlopnak a celláiban a munkalap használatát megkönnyítő útmutatás olvasható. Első lépésként nyomja le a Le nyílbillentyűt.
A2: A jobbra lévő cellában adhatja meg a cég neve. | B2: Cég neve
A3: A jobbra lévő cellában szerepel a munkalap címe. | B3: Webhelyköltségvetési eszköz
A4: A jobbra lévő cellában adhatja meg a dátum. | B4: Dátum
A5: A jobbra lévő cellában egy tipp szerepel. | B5: A szürke cellák nem módosítandó számításokat tartalmaznak.
A6: A jobbra lévő cellában kezdődő Arány táblázatban adhatja meg az adatokat. A következő utasítás az A10 cellában található. | B6: Cég adatai | C6: Arány
B7: Szükséges megtérülés | C7: 10%
B8: Áfakulcs | C8: 30%
A10: A jobbra lévő cellában kezdődő Kezdeti befektetés táblázatban adhatja meg az adatokat. A következő utasítás az A16 cellában található. | B10: Kezdeti befektetések a webhelybe | C10: ÉV | D10: 1 | E10: 2 | F10: 3
B11: Hardver (például kiszolgálók) | C11: 25,000.00 Ft
B12: Szoftver (például e-kereskedelmi katalógust kezelő szoftverek) | C12: 15,000.00 Ft
B13: Fejlesztés (például külső fél által végzett webhelytervezés és -fejlesztés) | C13: 150,000.00 Ft
B14: Kezdeti befektetések összesen | C14: =SUBTOTAL(109,KezdetiBefektetés[ÉV]) -> 190,000.00 Ft
A16: A jobbra lévő cellában kezdődő Előnyök táblázatban adhatja meg az adatokat. A következő utasítás az A24 cellában található. | B16: A webhelyből származó előnyök | C16: ÉV | D16: 1 | E16: 2 | F16: 3
B17: Közvetlen értékesítés | D17: 15,000.00 Ft | E17: 50,000.00 Ft | F17: 75,000.00 Ft
B18: A promóciók/üzletkötők nagyobb hatékonyságából származó értékesítésnövekmény | D18: 25,000.00 Ft | E18: 25,000.00 Ft | F18: 25,000.00 Ft
B19: A fokozott partneri részvételből származó értékesítésnövekmény | D19: 25,000.00 Ft | E19: 25,000.00 Ft | F19: 25,000.00 Ft
B20: Csökkentett utazási költségek | D20: 25,000.00 Ft | E20: 25,000.00 Ft | F20: 25,000.00 Ft
B21: Csökkentett ügyfélszolgáltatási költségek | D21: 50,000.00 Ft | E21: 50,000.00 Ft | F21: 50,000.00 Ft
B22: Összes előny | D22: =SUBTOTAL(109,Előnyök[1]) -> 140,000.00 Ft | E22: =SUBTOTAL(109,Előnyök[2]) -> 175,000.00 Ft | F22: =SUBTOTAL(109,Előnyök[3]) -> 200,000.00 Ft
A24: A jobbra lévő cellában kezdődő Költségek táblázatban adhatja meg az adatokat. A képletet tartalmazó cellákban a sablon automatikusan kiszámítja az értékeket. A következő utasítás az A32 cellában található. | B24: Költségek (a kezdeti tőkebefektetéseken kívül) | C24: ÉV | D24: 1 | E24: 2 | F24: 3
B25: Értékesítés költsége | D25: 7,500.00 Ft | E25: 25,000.00 Ft | F25: 37,500.00 Ft
B26: Karbantartás | D26: 15,000.00 Ft | E26: 15,000.00 Ft | F26: 15,000.00 Ft
B27: Projektkezelés, ügyféltámogatás | D27: 35,000.00 Ft | E27: 35,000.00 Ft | F27: 35,000.00 Ft
B28: Online hirdetés, keresőmotorokba való regisztráció | D28: 10,000.00 Ft | E28: 10,000.00 Ft | F28: 10,000.00 Ft
B29: Tőkeráfordítás értékcsökkenése (a számítás három éves időszakot használ) | D29: =KezdetiBefektetés[[#Totals],[ÉV]]/3 -> 63,333.33 Ft | E29: =KezdetiBefektetés[[#Totals],[ÉV]]/3 -> 63,333.33 Ft | F29: =KezdetiBefektetés[[#Totals],[ÉV]]/3 -> 63,333.33 Ft
B30: Teljes költség | D30: =SUBTOTAL(109,Költségek[1]) -> 130,833.33 Ft | E30: =SUBTOTAL(109,Költségek[2]) -> 148,333.33 Ft | F30: =SUBTOTAL(109,Költségek[3]) -> 160,833.33 Ft
A32: A jobbra lévő cellában kezdődő Végösszegek táblázatban a sablon automatikusan kiszámítja az értékeket. A következő utasítás az A40 cellában található. | B32: Végösszegek | C32: ÉV | D32: 1 | E32: 2 | F32: 3
B33: Nettó előnyök (költségek) | D33: =Előnyök[[#Totals],[1]]-Költségek[[#Totals],[1]] -> 9,166.67 Ft | E33: =Előnyök[[#Totals],[2]]-Költségek[[#Totals],[2]] -> 26,666.67 Ft | F33: =Előnyök[[#Totals],[3]]-Költségek[[#Totals],[3]] -> 39,166.67 Ft
B34: Adó | D34: =D33*Áfakulcs -> 2,750.00 Ft | E34: =E33*Áfakulcs -> 8,000.00 Ft | F34: =F33*Áfakulcs -> 11,750.00 Ft
B35: Adózás utáni érték | D35: =D33-D34 -> 6,416.67 Ft | E35: 18,666.67 Ft | F35: 27,416.67 Ft
B36: Ismét hozzáadott értékcsökkenés | D36: =D29 -> 63,333.33 Ft | E36: =E29 -> 63,333.33 Ft | F36: =F29 -> 63,333.33 Ft
B37: Pénzforgalom | C37: =-KezdetiBefektetés[[#Totals],[ÉV]] -> -190,000.00 Ft | D37: =D35+D36 -> 69,750.00 Ft | E37: 82,000.00 Ft | F37: 90,750.00 Ft
B38: Göngyölt pénzforgalom | C38: =C37 -> -190,000.00 Ft | D38: =C38+D37 -> -120,250.00 Ft | E38: -38,250.00 Ft | F38: 52,500.00 Ft
A40: A jobbra lévő cellában kezdődő Metrikák táblázatban a sablon automatikusan kiszámítja az értékelési metrikák. | B40: Értékelési metrikák | C40: Értékek
B41: Nettó jelenérték | C41: =C37+(NPV(ROR,D37:F37)) -> 9,359.50 Ft
B42: Belső megtérülési ráta | C42: =IRR(C37:F37) -> 12.66%
B43: Visszafizetési időszak (év) | C43: =IF(F38<=0,"Túllépi a 3 évet",IF(E38<=0,(F37-F38)/F37+2,IF(D38<=0,(E37-E38)/E37+1,IF(C38<=0,(D37-D38)/D37,"–")))) -> 2.42
